bitfinex-derivatives/quotes_SOLF0:USTF0_20250831
["timestamp","ask_amount","ask_price","bid_price","bid_amount"]
[1756653489123,3.01325343,203.9,203.81,7.33]
[1756653489923,6.08325343,203.9,203.81,7.33]
[1756653493322,329.5,203.95,203.81,7.33]
[1756653493528,3.07,203.94,203.82,7.33]
[1756653493723,3.01325343,203.93,203.82,7.33]
[1756653495323,3.07,203.94,203.82,7.33]
[1756653495529,329.5,203.95,203.85,7.33]
[1756653496627,3.01325343,204.03,203.91,7.33]
[1756653496824,122.58,204.02,203.91,7.33]
[1756653497027,3.01325343,204.0,203.91,7.33]
[1756653498129,125.59325343,204.02,203.91,7.33]
[1756653498635,125.59325343,204.02,203.92,7.33]
[1756653499628,122.58,204.02,203.92,11.39621822]
[1756653499829,3.07,204.03,203.93,7.33]
[1756653500334,125.53,204.07,203.96,7.33]
[1756653502338,125.49,204.07,203.96,7.33]
[1756653503533,3.07,204.07,203.97,7.33]
[1756653504336,6.08325343,204.07,203.97,7.33]
[1756653504737,3.06,204.06,203.95,4.06621822]
[1756653505041,6.07325343,203.99,203.89,7.33]
[1756653505433,6.07325343,203.99,203.89,10.34325343]
[1756653507243,3.06,203.99,203.9,7.33]
[1756653511545,3.06,203.99,203.9,11.40700254]
[1756653511744,3.06,203.99,203.91,7.33]
[1756653525349,3.01325343,204.04,203.92,7.21]
[1756653525649,3.06,204.03,203.92,7.21]
[1756653526644,3.01325343,204.04,203.92,7.21]
[1756653526844,3.06,204.03,203.92,7.21]
[1756653531253,3.06,204.03,203.93,7.21]
[1756653532756,3.06,204.03,203.93,4.07700254]
[1756653532956,3.06,204.03,203.94,7.21]
[1756653535660,3.06,204.03,203.95,7.21]
[1756653536651,329.62,204.11,203.95,7.21]
[1756653536960,125.24,204.1,203.99,7.21]
[1756653538356,3.06,204.1,203.99,11.28700254]
[1756653538556,125.24,204.1,204.0,7.21]
[1756653538863,3.06,204.1,204.03,7.21]
[1756653539561,3.06,204.1,204.03,11.28700254]
[1756653540162,3.06,204.1,204.04,4.07700254]
[1756653540762,3.06,204.1,204.04,4.07927059]
[1756653540965,3.06,204.1,204.06,7.21]
[1756653541154,3.06,204.1,204.05,7.21]
[1756653541555,3.06,204.1,204.04,11.28927059]
[1756653542065,3.01325343,204.15,204.04,11.28927059]
[1756653542357,3.06,204.14,204.04,7.21]
[1756653543056,125.19325343,204.15,204.04,7.21]
[1756653543261,3.01325343,204.12,204.04,7.21]
[1756653543655,3.01325343,204.12,204.0,7.21]
[1756653543966,3.01325343,204.09,204.0,7.21]
[1756653544165,3.06,204.08,204.0,7.21]
[1756653548867,3.06,204.13,204.02,7.82]
[1756653549166,3.06,204.13,204.05,7.82]
[1756653555269,3.06,204.17,204.06,3.01325343]
[1756653555462,3.06,204.17,204.07,7.82]
[1756653558161,3.01325343,204.17,204.07,7.82]
[1756653558362,3.06,204.16,204.07,7.82]
[1756653558670,3.06,204.15,204.07,7.82]
[1756653560572,3.06,204.16,204.07,7.82]
[1756653560874,3.01325343,204.17,204.07,7.82]
[1756653561070,3.06,204.16,204.07,7.82]
[1756653561275,3.01325343,204.17,204.07,7.82]
[1756653561475,3.01325343,204.17,204.02,3.01325343]
[1756653561476,3.01325343,204.14,204.02,3.01325343]
[1756653561676,3.01325343,204.11,203.99,7.82]
[1756653561976,3.01325343,204.08,203.99,7.82]
[1756653562173,6.07325343,204.05,203.99,7.82]
[1756653566479,3.06,204.04,203.95,7.82]
[1756653569782,33.31325343,204.07,203.95,7.82]
[1756653570684,33.31325343,204.07,203.96,7.82]
[1756653571982,3.01325343,204.07,203.96,7.82]
[1756653573083,3.06,204.08,203.96,7.82]
[1756653573279,65.15325343,204.08,203.96,7.82]
[1756653574484,6.07325343,204.08,203.96,7.82]
[1756653577082,3.06,204.11,203.99,4.07237802]
[1756653577286,3.06,204.11,204.0,7.82]
[1756653577880,3.06,204.11,204.01,4.56329966]
[1756653578085,3.06,204.11,203.99,4.07237802]
[1756653578086,3.06,204.11,204.02,12.04329966]
[1756653578282,3.06,204.11,204.03,4.56329966]
[1756653578487,3.06,204.11,204.04,4.56329966]
[1756653578687,3.06,204.11,204.05,4.56329966]
[1756653578889,3.03,204.12,204.06,4.56329966]
[1756653579088,454.47325343,204.13,204.07,4.56329966]
[1756653579287,454.47325343,204.13,204.08,4.56329966]
[1756653579484,3.03,204.12,204.09,4.56329966]
[1756653579687,454.47325343,204.13,204.1,4.56329966]
[1756653579890,3.03,204.12,204.11,4.56329966]
[1756653581088,3.03,204.12,204.11,1.53329966]
[1756653581292,3.03,204.12,204.0,7.48]
[1756653581293,0.48,204.12,204.0,7.48]
[1756653581591,3.01325343,204.08,204.0,7.48]
[1756653581787,122.12,204.07,204.0,7.48]
[1756653584692,122.12,204.09,204.0,7.48]
[1756653585697,125.13325343,204.09,204.0,7.48]
[1756653591802,125.13325343,204.09,203.97,4.07237802]
[1756653592005,125.13325343,204.09,203.96,11.55237802]
[1756653592601,125.13325343,204.09,203.97,7.48]
[1756653593303,125.13325343,204.09,203.98,4.50842488]
[1756653593603,125.13325343,204.09,203.99,4.50842488]
[1756653593904,125.13325343,204.09,204.0,4.50842488]
[1756653594105,125.13325343,204.09,204.01,4.50842488]
[1756653594300,125.13325343,204.09,204.02,4.50842488]
[1756653594603,122.12,204.09,204.03,4.50842488]
[1756653594802,3.01325343,204.08,204.04,4.50842488]
[1756653595006,3.01325343,204.08,204.05,4.50842488]
[1756653595200,3.01325343,204.08,204.06,4.50842488]
[1756653595398,3.01325343,204.08,204.07,4.50842488]
[1756653595597,3.01325343,204.08,203.97,7.48]
[1756653595801,3.01325343,204.04,203.97,7.48]
[1756653596008,122.12,204.03,203.97,7.48]
[1756653596702,3.01325343,204.01,203.93,11.55237802]
[1756653596904,3.01325343,204.01,203.93,7.48]
[1756653597713,5.46931139,204.11,203.93,7.48]
[1756653598005,3.01325343,204.02,203.93,7.48]
[1756653598207,26.0,204.01,203.93,7.48]
[1756653599298,3.01325343,204.12,204.0,7.48]
[1756653599498,27.96,204.11,204.0,7.48]
[1756653599704,3.01325343,204.09,204.0,7.48]
[1756653600910,30.97325343,204.11,204.0,7.48]
[1756653605501,30.97325343,204.11,203.97,3.01325343]
[1756653605502,3.01325343,204.08,203.98,4.07237802]
[1756653605700,3.01325343,204.08,203.98,11.55237802]
[1756653607513,3.01325343,204.11,203.99,4.426914]
[1756653607710,42.35325343,204.11,204.01,7.48]
[1756653607913,42.35325343,204.11,204.03,7.32]
[1756653608112,42.35325343,204.11,204.04,4.426914]
[1756653608312,3.01325343,204.11,204.05,4.426914]
[1756653608513,3.01325343,204.11,204.06,4.426914]
[1756653608815,3.01325343,204.11,204.07,4.426914]
[1756653609016,97.21325343,204.11,204.08,4.426914]
[1756653609214,97.21325343,204.11,204.09,4.426914]
[1756653609410,97.21325343,204.11,204.1,4.426914]
[1756653610218,94.2,204.11,204.1,4.426914]
[1756653612014,3.01325343,204.12,204.1,4.426914]
[1756653612211,3.01325343,204.12,204.11,4.426914]
[1756653612414,3.01325343,204.12,204.05,7.32]
[1756653612716,3.01325343,204.12,204.06,4.43024783]
[1756653613016,3.01325343,204.12,204.05,7.32]
[1756653613219,3.01325343,204.12,204.06,4.43024517]
[1756653613420,3.01325343,204.12,204.07,4.43040415]
[1756653613719,3.01325343,204.12,204.05,7.32]
[1756653613720,3.01325343,204.12,204.08,4.43040415]
[1756653613911,3.01325343,204.12,204.09,4.43040415]
[1756653614113,82.04,204.13,204.05,7.32]
[1756653614114,82.04,204.13,204.1,4.43040415]
[1756653614315,82.04,204.13,204.11,4.43040415]
[1756653614512,82.04,204.13,204.12,4.43040415]
[1756653614722,334.88931139,204.2,204.12,4.43040415]
[1756653614913,122.1,204.19,204.13,4.43040415]
[1756653615117,122.1,204.19,204.14,4.43040415]
[1756653615316,122.1,204.19,204.15,4.43040415]
[1756653615517,122.1,204.19,204.16,4.43040415]
[1756653615717,122.1,204.19,204.17,4.43040415]
[1756653615924,125.11325343,204.19,204.18,4.43040415]
[1756653617818,329.42,204.2,204.18,4.43040415]
[1756653618019,451.5,204.2,204.19,4.43040415]
[1756653618228,329.42,204.2,204.19,4.43040415]
[1756653618426,451.5,204.2,204.19,4.43040415]
[1756653620521,451.48,204.2,204.19,4.43040415]
[1756653621325,451.48,204.2,204.19,11.75040415]
[1756653621623,122.06,204.25,204.19,11.75040415]
[1756653621826,122.06,204.24,204.2,11.75040415]
[1756653622029,122.06,204.24,204.21,4.43040415]
[1756653622228,122.06,204.24,204.22,4.43040415]
[1756653622422,122.06,204.24,204.23,4.43040415]
[1756653623022,329.3,204.36,204.23,4.43040415]
[1756653623321,3.01325343,204.31,204.24,4.53876699]
[1756653623525,122.06,204.3,204.25,4.53876699]
[1756653623727,122.06,204.3,204.26,4.53876699]
[1756653623917,122.06,204.3,204.27,4.53876699]
[1756653624122,3.01325343,204.31,204.22,7.32]
[1756653624322,29.32,204.3,204.23,4.56961882]
[1756653624523,29.32,204.3,204.24,4.56961882]
[1756653624728,29.32,204.3,204.25,11.88961882]
[1756653624929,29.32,204.3,204.26,4.56961882]
[1756653625118,29.32,204.3,204.27,4.56961882]
[1756653625324,3.01325343,204.31,204.28,4.56961882]
[1756653625527,122.04,204.3,204.19,3.01325343]
[1756653625725,122.04,204.3,204.21,7.32]
[1756653625920,122.04,204.3,204.23,7.32]
[1756653626123,122.04,204.3,204.24,4.56499339]
[1756653626321,122.04,204.3,204.26,7.32]
[1756653626531,122.04,204.3,204.27,11.88499339]
[1756653626726,122.04,204.3,204.28,11.88499339]
[1756653626930,3.01325343,204.34,204.29,4.56499339]
[1756653627122,122.02,204.33,204.31,7.32]
[1756653627326,122.02,204.33,204.32,4.56499339]
[1756653631331,122.02,204.33,204.27,7.32]
[1756653631531,122.02,204.33,204.29,7.32]
[1756653631728,122.02,204.33,204.3,4.53779293]
[1756653631934,122.02,204.33,204.31,4.53779293]
[1756653632132,122.02,204.33,204.29,7.32]
[1756653632334,122.02,204.33,204.3,4.53530085]
[1756653632534,122.02,204.33,204.31,4.53530085]
[1756653632736,122.02,204.33,204.29,7.32]
[1756653632936,122.02,204.33,204.3,4.53529983]
[1756653633232,122.02,204.33,204.25,7.32]
[1756653633530,3.01325343,204.32,204.26,4.53373389]
[1756653633933,3.01325343,204.32,204.27,4.53480838]
[1756653634235,3.01325343,204.32,204.28,4.53480838]
[1756653634436,3.01325343,204.32,204.22,7.32]
[1756653634735,3.01325343,204.32,204.23,4.53365428]
[1756653634932,3.01325343,204.32,204.24,4.53365428]
[1756653635136,3.01325343,204.32,204.25,11.85365428]
[1756653635337,3.01325343,204.32,204.26,4.53365428]
[1756653635540,3.01325343,204.32,204.27,4.53365428]
[1756653635727,3.01325343,204.32,204.28,4.53365428]
[1756653635933,3.01325343,204.32,204.29,4.53365428]
[1756653636241,3.01325343,204.32,204.25,7.32]
[1756653636438,3.01325343,204.32,204.26,4.5253665]
[1756653636638,3.01325343,204.32,204.27,11.8453665]
[1756653636941,3.01325343,204.32,204.28,4.5253665]
[1756653637139,122.02,204.33,204.29,11.8453665]
[1756653637339,122.02,204.33,204.3,4.5253665]
[1756653637537,122.02,204.33,204.29,7.32]
[1756653637739,122.02,204.33,204.3,4.5253066]
[1756653637935,122.02,204.33,204.29,7.32]
[1756653638138,122.02,204.33,204.3,4.52510508]
[1756653638339,122.02,204.33,204.31,4.52510508]
[1756653638538,122.02,204.33,204.29,7.32]
[1756653638740,122.02,204.33,204.3,4.52312898]
[1756653638942,122.02,204.33,204.31,4.52312898]
[1756653639138,122.02,204.33,204.29,7.32]
[1756653639445,122.02,204.33,204.3,4.52250102]
[1756653639642,122.02,204.33,204.31,4.52250102]
[1756653639843,122.02,204.33,204.29,7.32]
[1756653640043,122.02,204.33,204.3,4.52250102]
[1756653640241,122.02,204.33,204.31,4.52250102]
[1756653640440,122.02,204.33,204.29,7.32]
[1756653640742,122.02,204.33,204.3,4.52206312]
[1756653640942,122.02,204.33,204.31,4.52206312]
[1756653641144,122.02,204.33,204.29,7.32]
[1756653641345,122.02,204.33,204.3,4.52180752]
[1756653641643,122.02,204.33,204.31,4.52180752]
[1756653641844,122.02,204.33,204.29,7.32]
[1756653642039,329.3,204.36,204.3,4.52152383]
[1756653642343,121.94,204.35,204.32,7.88]
[1756653642546,121.94,204.35,204.33,12.40152383]
[1756653642745,121.94,204.35,204.34,4.52152383]
[1756653643245,329.04,204.48,204.34,4.52152383]
[1756653643544,3.01325343,204.39,204.35,4.52152383]
[1756653643741,3.01325343,204.39,204.33,7.88]
[1756653643742,121.94,204.38,204.36,4.52152383]
[1756653643937,121.94,204.38,204.37,4.52152383]
[1756653644442,121.94,204.38,204.37,4.52207845]
[1756653646238,121.92,204.38,204.37,4.52207845]
[1756653655143,121.92,204.38,204.37,4.53220828]
[1756653657047,329.04,204.48,204.37,12.41220828]
[1756653657048,124.87325343,204.44,204.37,12.41220828]
[1756653657245,124.87325343,204.44,204.38,4.53220828]
[1756653657546,124.87325343,204.44,204.39,4.53220828]
[1756653657743,124.87325343,204.44,204.4,4.53220828]
[1756653657940,121.86,204.43,204.41,4.53220828]
[1756653658141,121.86,204.43,204.42,4.53220828]
[1756653663752,124.87325343,204.43,204.42,4.53220828]
[1756653664652,124.87325343,204.43,204.42,4.5513163]
[1756653665550,124.87325343,204.43,204.42,4.55431879]
[1756653666352,121.86,204.43,204.42,4.55431879]
[1756653667348,124.87325343,204.43,204.42,4.55431879]
[1756653667552,125.35325343,204.43,204.31,7.88]
[1756653667755,3.01325343,204.4,204.31,7.88]
[1756653670358,3.01325343,204.45,204.34,7.54]
[1756653670557,121.82,204.44,204.34,7.54]
[1756653675072,121.8,204.43,204.34,7.54]
[1756653675366,0.0309342,204.41,204.34,7.54]
[1756653678576,0.0309342,204.41,204.29,5.52752532]
[1756653678577,0.0309342,204.41,204.31,7.54]
[1756653685179,3.04418763,204.41,204.31,7.54]
[1756653687078,3.04418763,204.41,204.31,11.60292342]
[1756653687779,3.04418763,204.41,204.32,7.54]
[1756653695178,3.01325343,204.35,204.28,7.54]
[1756653695379,124.75325343,204.35,204.28,7.54]
[1756653696483,121.74,204.34,204.28,7.54]
[1756653698183,3.01325343,204.32,204.25,11.26292342]
[1756653698386,3.01325343,204.29,204.22,4.06292342]
[1756653698585,3.01325343,204.29,204.21,11.26292342]
[1756653698779,3.01325343,204.29,204.21,7.2]
[1756653699583,4.08,204.28,204.21,7.2]
[1756653699784,4.08,204.28,204.22,4.39275723]
[1756653699980,4.08,204.28,204.23,4.39275723]
[1756653700186,4.08,204.28,204.24,4.39275723]
[1756653700382,4.08,204.28,204.25,4.39275723]
[1756653700578,4.08,204.28,204.26,4.39275723]
[1756653700783,4.08,204.28,204.27,4.39275723]
[1756653701182,3.01325343,204.26,204.21,7.2]
[1756653701688,3.01325343,204.26,204.16,4.06292342]
[1756653701689,3.01325343,204.26,204.17,7.2]
[1756653701887,3.01325343,204.26,204.17,4.06292342]
[1756653702086,3.01325343,204.26,204.18,7.2]
[1756653704095,77.27325343,204.26,204.18,7.2]
[1756653704298,3.01325343,204.26,204.18,7.2]
[1756653705591,3.01325343,204.23,204.15,7.2]
[1756653705788,3.01325343,204.2,204.15,7.2]
[1756653705992,3.01325343,204.2,204.09,5.52752532]
[1756653705993,3.01325343,204.2,204.12,7.2]
[1756653709898,3.01325343,204.27,204.12,7.2]
[1756653710193,3.01325343,204.2,204.12,7.2]
[1756653711004,3.01325343,204.27,204.12,7.2]
[1756653711198,3.01325343,204.22,204.12,7.2]
[1756653712398,328.92,204.34,204.14,3.01325343]
[1756653712699,3.01325343,204.28,204.15,7.2]
[1756653713399,25.44,204.29,204.18,7.2]
[1756653713602,3.01325343,204.31,204.18,7.2]
[1756653713803,25.52,204.3,204.18,7.2]
[1756653714003,25.52,204.3,204.19,7.2]
[1756653714702,3.01325343,204.25,204.19,7.2]
[1756653717611,3.01325343,204.28,204.19,7.2]
[1756653718209,29.09325343,204.28,204.19,7.2]
[1756653718909,3.01325343,204.27,204.19,7.2]
[1756653720511,3.01325343,204.26,204.19,7.2]
[1756653720912,3.01325343,204.26,204.13,3.01325343]
[1756653720913,3.01325343,204.23,204.13,7.2]
[1756653722713,3.01325343,204.27,204.13,7.2]
[1756653722916,3.01325343,204.25,204.14,7.2]
[1756653723618,29.09325343,204.28,204.16,3.01325343]
[1756653723815,29.09325343,204.28,204.17,7.2]
[1756653724221,3.01325343,204.28,204.17,7.2]
[1756653724719,3.01325343,204.28,204.18,7.2]
[1756653725427,3.01325343,204.32,204.19,3.01325343]
[1756653725722,3.01325343,204.32,204.2,7.2]
[1756653726722,3.01325343,204.29,204.2,7.2]
[1756653729222,28.31325343,204.29,204.2,7.2]
[1756653731622,3.01325343,204.26,204.16,7.77]
[1756653732119,3.01325343,204.23,204.16,7.77]
[1756653732912,3.01325343,204.19,204.12,4.06292342]
[1756653733223,3.01325343,204.15,204.08,7.77]
[1756653733417,3.01325343,204.11,204.08,7.77]
[1756653734024,357.08,204.2,204.01,7.77]
[1756653734319,3.01325343,204.13,204.02,7.77]
[1756653737026,3.01325343,204.1,204.02,7.77]
[1756653740221,3.01325343,204.07,203.97,7.77]
[1756653740419,329.08,204.2,203.99,7.77]
[1756653740616,3.01325343,204.11,203.99,7.77]
[1756653743332,3.01325343,204.11,204.0,7.77]
[1756653747342,3.01325343,204.1,204.0,7.77]
[1756653748346,3.01325343,204.14,204.02,3.01325343]
[1756653748546,3.01325343,204.14,204.03,7.77]
[1756653754648,3.01325343,204.16,204.03,7.77]
[1756653755345,3.01325343,204.19,204.06,7.77]
[1756653756446,3.01325343,204.19,204.09,7.77]
[1756653758153,450.8,204.2,204.09,7.77]
[1756653758453,329.08,204.2,204.09,7.77]
[1756653758753,329.08,204.2,204.09,10.78325343]
[1756653758952,3.01325343,204.19,204.1,7.7]
[1756653763260,3.01325343,204.16,204.1,7.7]
[1756653764352,121.72,204.22,204.1,7.7]
[1756653764548,3.01325343,204.19,204.1,7.7]
[1756653765759,121.7,204.18,204.1,7.7]
[1756653769255,3.01325343,204.2,204.1,7.7]
[1756653777363,3.01325343,204.2,204.11,7.7]
[1756653780275,49.82,204.22,204.11,7.7]
[1756653780472,3.01325343,204.23,204.13,7.7]
[1756653781464,72.64,204.24,204.13,7.7]
[1756653781668,3.01325343,204.23,204.13,7.7]
[1756653782666,329.24,204.27,204.13,11.76292342]
[1756653782667,3.01325343,204.26,204.13,11.76292342]
[1756653782967,3.01325343,204.26,204.14,7.7]
[1756653785073,3.01325343,204.23,204.15,7.7]
[1756653788169,3.01325343,204.25,204.15,7.7]
[1756653792379,3.01325343,204.22,204.15,7.7]
[1756653792581,3.01325343,204.25,204.15,7.7]
[1756653793077,121.58,204.25,204.16,12.3910658]
[1756653793374,121.58,204.25,204.18,7.96]
[1756653793579,121.58,204.25,204.19,4.4310658]
[1756653793769,121.58,204.25,204.2,4.4310658]
[1756653793973,121.58,204.25,204.22,7.96]
[1756653794279,121.58,204.25,204.23,4.4310658]
[1756653794476,121.58,204.25,204.24,4.4310658]
[1756653799781,124.59325343,204.25,204.24,4.4310658]
[1756653800585,124.59325343,204.25,204.19,7.96]
[1756653800785,124.59325343,204.25,204.2,12.39515036]
[1756653800976,124.59325343,204.25,204.21,4.43515036]
[1756653801179,124.59325343,204.25,204.22,4.43515036]
[1756653801379,124.59325343,204.25,204.23,4.43515036]
[1756653801583,124.59325343,204.25,204.24,4.43515036]
[1756653802480,121.58,204.25,204.24,4.43515036]
[1756653803582,3.01325343,204.28,204.24,4.43515036]
[1756653803879,121.54,204.26,204.25,4.43515036]
[1756653805085,3.01325343,204.28,204.25,4.43515036]
[1756653805287,121.52,204.26,204.2,7.96]
[1756653805587,121.52,204.26,204.21,12.39456851]
[1756653805784,121.52,204.26,204.22,4.43456851]
[1756653806089,121.52,204.26,204.23,4.43456851]
[1756653806286,121.52,204.26,204.24,4.43456851]
[1756653806482,121.52,204.26,204.25,4.43456851]
[1756653806687,124.53325343,204.26,204.25,4.43456851]
[1756653807287,124.53325343,204.26,204.25,4.43444283]
[1756653811494,124.53325343,204.26,204.25,4.43355125]
[1756653812690,3.01325343,204.26,204.25,4.43355125]
[1756653812898,121.5,204.26,204.25,4.43355125]
[1756653814298,121.48,204.26,204.25,4.43355125]
[1756653815894,121.48,204.27,204.25,4.43355125]
[1756653816099,121.48,204.27,204.26,4.43355125]
[1756653818104,3.01325343,204.31,204.26,12.06355125]
[1756653818301,121.46,204.3,204.27,4.43355125]
[1756653818602,121.46,204.3,204.28,4.43355125]
[1756653818799,121.46,204.3,204.29,4.43355125]
[1756653822205,121.46,204.3,204.26,7.63]
[1756653822407,121.46,204.3,204.27,4.44709248]
[1756653822606,121.46,204.3,204.28,4.44709248]
[1756653822809,121.46,204.3,204.29,4.44709248]
[1756653823008,121.44,204.3,204.29,4.44709248]
[1756653825012,3.01325343,204.31,204.29,4.44709248]
[1756653825212,3.01325343,204.31,204.3,4.44709248]
[1756653825407,124.43325343,204.31,204.3,4.44709248]
[1756653825817,121.42,204.31,204.3,4.44709248]
[1756653826211,329.14,204.33,204.3,4.44709248]
[1756653826406,332.15325343,204.33,204.31,4.44709248]
[1756653826607,332.15325343,204.33,204.32,4.44709248]
[1756653826608,329.14,204.33,204.32,4.44709248]
[1756653826809,450.56,204.33,204.32,4.44709248]
[1756653827707,121.42,204.33,204.32,12.07709248]
[1756653829416,121.42,204.33,204.32,12.22832221]
[1756653831413,3.01325343,204.39,204.32,12.22832221]
[1756653831618,3.01325343,204.39,204.34,7.63]
[1756653831921,121.38,204.38,204.35,4.59832221]
[1756653832121,121.38,204.38,204.36,4.59832221]
[1756653832415,121.38,204.39,204.37,4.59832221]
[1756653832616,121.38,204.39,204.38,4.59832221]
[1756653833010,121.38,204.39,204.38,4.58786133]
[1756653833924,3.01325343,204.41,204.38,4.58786133]
[1756653834112,121.36,204.4,204.39,4.58786133]
[1756653834516,3.01325343,204.41,204.39,4.58786133]
[1756653834719,3.01325343,204.41,204.4,4.58786133]
[1756653835017,329.04,204.45,204.4,4.58786133]
[1756653835222,3.01325343,204.42,204.41,4.58786133]
[1756653836523,3.01325343,204.42,204.41,4.5796325]
[1756653837719,3.01325343,204.42,204.28,7.08186366]
[1756653837925,3.01325343,204.39,204.3,7.63]
[1756653838115,49.96,204.38,204.3,7.63]
[1756653840427,3.01325343,204.36,204.3,7.63]
[1756653842324,3.01325343,204.36,204.25,7.63]
[1756653842522,3.01325343,204.33,204.25,7.63]
[1756653842718,3.01325343,204.3,204.25,7.63]
[1756653843118,3.01325343,204.3,204.23,7.63]
[1756653844024,6.11325343,204.3,204.23,7.63]
[1756653846829,3.01325343,204.27,204.19,7.63]
[1756653847128,3.01325343,204.24,204.16,7.63]
[1756653849731,3.01325343,204.24,204.17,4.49402472]
[1756653849931,3.01325343,204.24,204.18,4.49402472]
[1756653850131,7.05325343,204.24,204.19,12.15402472]
[1756653850430,7.05325343,204.24,204.2,4.49402472]
[1756653850631,7.05325343,204.24,204.21,4.49402472]
[1756653850930,7.05325343,204.24,204.22,4.49402472]
[1756653851131,7.05325343,204.24,204.23,4.49402472]
[1756653851430,3.01325343,204.24,204.23,4.49402472]
[1756653852229,16.03325343,204.24,204.23,4.49402472]
[1756653852730,6.32137544,204.38,204.23,4.49402472]
[1756653852934,3.01325343,204.29,204.25,7.66]
[1756653853134,3.01325343,204.29,204.26,4.49059711]
[1756653853426,3.01325343,204.29,204.27,4.49059711]
[1756653853631,3.01325343,204.29,204.25,7.66]
[1756653853632,3.01325343,204.29,204.28,4.49059711]
[1756653855634,43.41325343,204.29,204.28,4.49059711]
[1756653856834,3.01325343,204.29,204.28,4.49059711]
[1756653858332,3.49325343,204.29,204.2,7.66]
[1756653858529,3.01325343,204.25,204.13,7.66]
[1756653859938,3.01325343,204.25,204.14,7.66]
[1756653860134,3.01325343,204.26,204.14,7.66]
[1756653860530,3.01325343,204.3,204.18,3.01325343]
[1756653860732,3.01325343,204.3,204.19,7.66]
[1756653862132,6.11325343,204.33,204.21,3.01325343]
[1756653862333,6.11325343,204.33,204.22,7.66]
[1756653864133,3.01325343,204.33,204.22,7.66]
[1756653865538,3.24,204.34,204.22,7.66]
[1756653867536,16.47325343,204.35,204.22,7.66]
[1756653867937,35.83325343,204.35,204.22,7.66]
[1756653868745,3.01325343,204.35,204.22,7.66]
[1756653869244,3.01325343,204.35,204.24,3.01325343]
[1756653869441,3.01325343,204.35,204.25,7.66]
[1756653870348,3.01325343,204.35,204.26,4.4283349]
[1756653870540,3.01325343,204.35,204.28,7.66]
[1756653870740,3.01325343,204.35,204.29,4.4283349]
[1756653871044,3.01325343,204.35,204.3,12.0883349]
[1756653871239,3.01325343,204.35,204.31,4.4283349]
[1756653871444,3.01325343,204.35,204.32,4.4283349]
[1756653871740,3.01325343,204.35,204.33,4.42794766]
[1756653871946,3.01325343,204.35,204.26,7.66]
[1756653872146,3.01325343,204.35,204.27,4.42846879]
[1756653872346,3.01325343,204.35,204.28,4.42846879]
[1756653872542,3.01325343,204.35,204.29,4.42846879]
[1756653872743,20.0,204.36,204.26,7.66]
[1756653872744,3.01325343,204.34,204.3,4.42846879]
[1756653873044,3.01325343,204.34,204.31,4.42846879]
[1756653873236,3.01325343,204.34,204.32,4.42846879]
[1756653873442,3.01325343,204.34,204.33,4.42846879]
[1756653874148,3.01325343,204.34,204.26,7.66]
[1756653874348,3.01325343,204.34,204.27,4.42787354]
[1756653874644,3.01325343,204.34,204.28,4.42824997]
[1756653874845,3.01325343,204.34,204.29,12.08824997]
[1756653875045,3.01325343,204.34,204.3,4.42824997]
[1756653875238,23.01325343,204.36,204.32,7.66]
[1756653875443,23.01325343,204.36,204.33,4.42824997]
[1756653875640,23.01325343,204.36,204.28,7.66]
[1756653875842,20.0,204.36,204.29,4.4066818]
[1756653876042,3.01325343,204.35,204.3,4.4066818]
[1756653876247,3.01325343,204.35,204.31,12.0666818]
[1756653876448,3.01325343,204.35,204.32,4.4066818]
[1756653876747,3.01325343,204.35,204.33,4.4066818]
[1756653876941,3.01325343,204.35,204.31,7.66]